{"text_format":"3","workbook":"xlsx","n_sheets":1,"sheets":["Sheet1"],"read":"whole","date_system":"1900"}

{"sheet":"Sheet1","index":0,"n_rows":438,"n_cols":5,"rows_kept":438,"merged":[[0,0,0,4],[2,0,2,4],[3,0,3,4],[4,0,4,4],[5,0,5,4],[6,0,6,4],[7,0,7,4],[8,0,8,4],[9,0,10,0],[9,1,10,1],[9,2,10,2],[9,3,9,4],[11,0,11,4],[12,0,12,4],[19,0,19,1],[20,0,20,4],[24,0,24,1],[25,0,25,4],[31,0,31,1],[32,0,32,1],[33,0,33,1],[34,0,34,4],[35,0,35,4],[41,2,42,2],[43,2,44,2],[51,0,51,1],[52,0,52,4],[58,0,58,1],[59,0,59,4],[81,0,81,1],[82,0,82,1],[83,0,83,1],[84,0,84,4],[85,0,85,4],[105,0,105,1],[106,0,106,4],[139,0,139,1],[141,0,141,4],[142,0,142,4],[145,0,145,1],[146,0,146,1],[148,0,148,4],[149,0,149,4],[159,0,159,1],[160,0,160,4],[164,0,164,1],[165,0,165,4],[168,0,168,1],[169,0,169,1],[170,0,170,4],[171,0,171,4],[172,0,172,4],[182,0,182,1],[183,0,183,4],[194,0,194,1],[195,0,195,4],[204,0,204,1],[205,0,205,4],[216,0,216,1],[217,0,217,4],[229,0,229,1],[230,0,230,4],[245,0,245,1],[246,0,246,4],[261,0,261,1],[262,0,262,4],[271,0,271,1],[272,0,272,4],[284,0,284,1],[285,0,285,4],[297,0,297,1],[298,0,298,4],[311,0,311,1],[312,0,312,4],[322,0,322,1],[323,0,323,4],[336,0,336,1],[337,0,337,4],[350,0,350,1],[351,0,351,4],[362,0,362,1],[363,0,363,4],[377,0,377,1],[378,0,378,4],[390,0,390,1],[391,0,391,4],[400,0,400,1],[401,0,401,4],[413,0,413,1],[414,0,414,1]]}
["ТАБЕЛА 1"]
[" Биланси остварених капацитета по функционалним целинама и укупно - ОБЈЕКАТ ФАРМАЦЕУТСКОГ ФАКУЛТЕТА"]
["А   ПРОСТОРИ ЗА НАСТАВУ "]
["Б   АДМИНИСТРАЦИЈА "]
["В   ЛАБОРАТОРИЈЕ И ВИВАРИЈУМИ"]
["Г    ТЕХНИЧКЕ ПРОСТОРИЈЕ"]
["Д    КАТЕДРЕ"]
[]
["ПРЕГЛЕД  ПОВРШИНА ПО ФУНКЦИОНАЛНИМ ЦЕЛИНАМА И УКУПНО"]
["ознака просторије","назив просторије","локација и диспозиција просторије","остварени критеријуми конкурсним решењем"]
[{"$nulls":3},"локација и диспозиција просторије","капацитети остварени конкурсним решењем (m²)"]
["(А)  ПРОСТОРИ ЗА НАСТАВУ "]
["АМФИТЕАТРИ"]
["1.","Амфитеатар велики; 500 места (600м2)","приземље - 3 додатне просторије уз сваки амфитеатар; (амфитеатри морају да буду једни поред других)"]
["2.","Амфитеатар средњи; 2 х 250 места (2 х 250м2) ","приземље - 3 додатне просторије уз сваки амфитеатар; (амфитеатри морају да буду једни поред других)"]
["3.","Амфитеатар мали; 2 х 100 (2 х 120м2)  ","приземље - 3 додатне просторије уз сваки амфитеатар; (амфитеатри морају да буду једни поред других)"]
["4.","Тоалети (80м2)  "]
["5.","Студентска гардероба код амфитеатара (40м2)  "]
[]
["АМФИТЕАТРИ -  НЕТО УКУПНО",{"$nulls":3},{"$f":"SUM(E14:E19)","v":{"v":0,"d":"0.00"}}]
[" УЧИОНИЦЕ"]
["1.","Компјутерска учионица; 6 х 40 места (6 х 100m2)   ","Учионице да буду повезане хоризонталном комуникацијом, једна поред друге.\nПотребно природно осветљење."]
["2.","Учионица; 4 х 40 места (4 х 100m2)  ","Учионице да буду повезане хоризонталном комуникацијом, једна поред друге.\nПотребно природно осветљење."]
["3.","Лабораторија симулирајућа апотека; 3 х 20 места (3 х 40m2)  ","Учионице да буду повезане хоризонталном комуникацијом, једна поред друге.\nДодатна просторија уз апотеку за наставно особље."]
["УЧИОНИЦЕ -  НЕТО УКУПНО",{"$nulls":3},{"$f":"SUM(E22:E24)","v":{"v":0,"d":"0.00"}}]
["ЦЕНТРАЛНА БИБЛИОТЕКА И ЧИТАОНИЦА"]
["1.","Читаоница - централна; 60 места  (150м2)  ","Потребан простор за рад на рачунарима и просторије библиотекара.\nДиспозиција северна или североисточна)."]
["2.","Библиотека - централна (150м2)","Потребан простор за рад на рачунарима и просторије библиотекара.\nДиспозиција северна или североисточна)."]
["3.","Тоалет библиотеке  (20м2)  "]
["4.","Депо Библиотеке (150m2)"]
["5.","Компјутерска читаоница; 30 места (60 м2)  "]
["ЦЕНТРАЛНА БИБЛИОТЕКА И ЧИТАОНИЦА  -  НЕТО УКУПНО",{"$nulls":3},{"$f":"SUM(E27:E30)","v":{"v":0,"d":"0.00"}}]
["(А)  ПРОСТОРИ ЗА НАСТАВУ - НЕТО УКУПНО",{"$nulls":3},{"$f":"SUM(E20,E25,E32)","v":{"v":0,"d":"0.00"}}]
[]
["Б    АДМИНИСТРАЦИЈА "]
["СТРУЧНЕ СЛУЖБЕ"]
["1.","Aрхива  (35м2)","Сместити у непосредној близини Одсека за наставу и студнтска питања"]
["2.","Депо Архиве  (40м2)  "]
["3.","Шеф Одсека за правне и опште послове  (25м2)  "]
["4.","Руководиоци Одсека за одржавање објекта (80м2) ","Канцеларијски део- 30 m2\nСкладиште - 50 m2"]
["5.","Одсек за наставу и студентска питања ","Близу главног улаза Факултета"]
["5.1.","Шалтер служба Одсека за наставу и студентска питања (50м2)","Најмање 5 шалтера.\nФункционишу као целина и у хоризонталној комуникацији су са канцеларијама Одсека за наставу и студентска питања."]
["5.2.","Шалтер сала за студенте у оквиру Одсека за наставу и студентска питања  (100м2) "]
["5.3.","Канцеларије шефа и референата Одсека за наставу и студентска питања  (3 х 30м2)  ","Повезани хоризонталном комуникацијом"]
["5.4.","Канцеларија продекана за наставу и продекана за посдледипломску наставу и континуирану едукацију (30м2)"]
["5.5.","Простор за архивирање Одсека за наставу и студентска питања  (50м2)  "]
["6.","Служба за финансијске послове"]
[" 6.1.","Одсек за комерцијалне послове (2 х 25м2)"]
[" 6.2.","Простор за архивирање Одсекa за комерцијалне послове (20м2)  "]
[" 6.3.","Простор за архивирање Одсека за материјалне и финансијске послове (4 х 25м2) "]
["6.4.","Простор за архивирање Одсека за материјалне и финансијске послове  (20м2)  "]
["СТРУЧНЕ СЛУЖБЕ - НЕТО УКУПНО",{"$nulls":3},{"$f":"SUM(E37:E46)","v":{"v":0,"d":"0.00"}}]
["УПРАВА ФАКУЛТЕТА"]
["1.","Декан  (35м2)","Улаз из канцеларије пословног секретара, а та просторија мора бити пројектована на начин да омогући боравак више особа које чекају пријем код декана."]
["2.","Пословни секретар  (25м2)  "]
["3.","Канцеларија продекана за финансије и продекана за науку и међународну сарадњу  (30м2)  ","Пожељно да се налази у близу соби декана.\nЈедна канцеларија у непосредној хиризонталној комуникацији са студентском службом, а друга у непосредној хоризонталној комуникацији са службом за финанскијске послове."]
["4.","Свечана сала (100м2) ","У близини канцеларије декана и продекана"]
["5.","Секретар (25м2) "]
["УПРАВА ФАКУЛТЕТА - НЕТО УКУПНО",{"$nulls":3},{"$f":"SUM(E44:E53)","v":{"v":0,"d":"0.00"}}]
["ПРОСТОРИЈЕ ЗА ПОСЕБНЕ НАМЕНЕ"]
["1.","Студентске организације  (4 х 25м2)"]
["2.","Разглас /техника  (20м2)  "]
["3.","Спремачице   (60м2)  ","Заједнички простор 30 m2\nСкладиште 30 m2"]
["4.","Чајна кухиња стручних служби (30м2) "]
["5.","Тоалети (4 х 20м2)"]
["6.","Канцеларије за центре факултета (10 х 25м2)"]
["7.","Фотокопирница  (30м2) "]
["8.","Скриптарница  (40м2)  ","Близу главног улаза Факултета.\n"]
["9.","Складиште скриптарнице (50м2)"]
["10.","Депо Музеја за историју фармације  (400м2)  ","Депо музеја треба да садржи следеће просторије: \n1. пријем, дезинфекцију, чишћење и паковање  уметничко историјских дела, архивалија  и књига, 30 m2\n2. просторија за чување уметничко – историјских дела 150 m2,\n3. просторија за чување библиотечких јединица и архивске грађе 100 m2\n4. канцеларија кустоса са обезбеђеним делом за чување документације и са делом за читаоничке столове и столице, 60 m2\n5. мокри чвор са тоалетом, 3 m2\n6. просторија за конзерваторско рестаураторске радове 40 m2"]
["11.","Синдикална организација (30м2)"]
["12.","Канцеларија Службе обезбеђења (30м2)"]
["13.","Портирница (25м2)  "]
["14.","Студентска менза (330м2) "]
["15.","Централни простор за студентске ормариће  (300м2)  "]
["16.","Служба за информационе технологије; 6 запослених (155 + 20м2)  ","1 засебан канцеларијски простор који је лако доступан рачунарских простора у згради (средишњи спрат).\n2 серверске собе (1 у средишту зграде, 1 у приземљу).\n1 просторија за складиштење ИТ опреме (30м2) која је позиционирана у приземљу близу лифта."]
["17.","HUB простор за последипломце и истраживаче по пројектима (3 х 60м2) ","Мора да буде \"Оpen space\"."]
["18.","Сале за самостални студентски рад (до 8 особа)  (5 х 15м2)  "]
["19.","Сала за састанке (10 особа) (2 х 30м2)","Приземље са улазом споља."]
["20.","Комерцијална апотека (за потребе БИО4 кампуса) (300м2)"]
["21.","Кафић /пекара (50м2)"]
["ПРОСТОРИЈЕ ЗА ПОСЕБНЕ НАМЕНЕ - НЕТО УКУПНО",{"$nulls":3},{"$f":"SUM(E67:E76)","v":{"v":0,"d":"0.00"}}]
["(Б)  АДМИНИСТРАЦИЈА - НЕТО УКУПНО",{"$nulls":3},{"$f":"SUM(E35,E40,E57,E63,E70,E77,E82)","v":{"v":0,"d":"0.00"}}]
[]
["В   ЛАБОРАТОРИЈЕ И ВИВАРИЈУМИ"]
["ЦЕНТРАЛНЕ ЛАБОРАТОРИЈЕ-НИР"]
["1.","Биомедицинска"]
["1.1.","Собе за рад са ћелијским културама (24 + 24 + 24м2)","1. Простор за замрзивач,\n2. Танк са течним азотом,\n3. Соба за фрижидере."]
["1.2.","Хистолошка лабораторија (42м2)"]
["1.3.","Централна лабораторија за опште послове, анализу протеина и припрему узорака (104 + 104м2)"]
["1.4.","Соба за масену спектроскопију (24м2)"]
["1.5.","Микроскопске собе   (12 + 12м2)","Мрачне собе, без прозора"]
["1.6.","Соба за проточну цитометрију (12м2)"]
["1.7.","Лабораторија за рад са нуклеинским киселинама (PCR lab) (42 + 42м2)","Свака од четири просторије треба да има посебну вентилацију и градијент притиска је потребан од најчистијих до најконтаминиранијих соба аеросолом. Потребне су четири просторије специфичне оријентације и положаја. Потребне су две овакве лабораторије. Једна је резервна у случају контаминације. Могућност за периодичну деконтаминацију гасом"]
["1.8.","Канцеларијe придружена лабораторији (12 + 12 + 12м2)"]
["1.9.","Складишта (8*9=72м2)"]
["1.10.","Хладна соба (18м2)"]
["1.11.","Соба са -80 замрзивачима (24м2) "]
["1.12.","Помоћна просторија за материјалом за одржавање хигијене (18м2) "]
["1.13.","Простор за аутоклавирање, прање и сушење (18м2)"]
["2.","Хемијска (200м2)"]
["3.","Фармацеутско-технолошка Козметологија (200м2)"]
["4.","Ботаничко/биолошка/фармакогнозијска (120м2)"]
["5.","Лабораторија за рад са матичним стем ћелијама (80м2) "]
["6.","Биоинформатичка лабораторија (100м2) "]
["ЦЕНТРАЛНЕ ЛАБОРАТОРИЈЕ-НИР - НЕТО УКУПНО",{"$nulls":3},{"$f":"SUM(E91:E100)","v":{"v":0,"d":"0.00"}}]
["ЦЕНТРАЛНЕ ЛАБОРАТОРИЈЕ-КОМЕРЦИЈАЛНЕ УСЛУГЕ"]
["1.","ЛИКЛ   ","Одвојен улаз у део зграде у ком се налази лабораторија."]
["1.1.","Лабораторија П01 (100м2)"]
["1.2.","Просторије за обезбеђење квалитета П06 (25м2) "]
["1.3.","Прање П03  (10м2) "]
["1.4.","Аналитички блок П04 (12м2) "]
["1.5.","Просторија за мерење П05 (10м2)"]
["1.6.","Пријем и чување узорака П07 (30м2)","Без прозора"]
["1.7.","Улазни ходник П08 и П09 (15м2)"]
["1.8.","Гардероба П10 (10м2)"]
["1.9.","Коморе за стабилност П10а   (20м2)"]
["1.10.","Архива П10б (20м2)"]
["1.11.","Технички простор за ХВАК систем П11 и П13 (PCR lab) (35м2)"]
["1.12.","Просторија за одмор П11а (20м2)"]
["1.13.","Складиште за хемикалије (50м2)"]
["1.14.","Тоалет (15м2)"]
["2.","ЛМИ (65м2) ","Одвојен улаз у део зграде у ком се налази лабораторија."]
["3.","ЛМБА ","Одвојен улаз у део зграде у ком се налази лабораторија."]
["3.1.","ЛМБА 1\n(лабораторија за биохемију, имунохемију, ХПЛЦ, ELISA и лабораторија за студенте) (75м2)","Одвојен улаз у део зграде у ком се налази лабораторија.","Издвојен део за систем за дејонизовану воду за рад биохемијског анализатора."]
["3.2.","ЛМБА 2\n(лабораторија за хематологију, хемостазу, анализу урина и лабораторија за студенте) (60м2)","Одвојен улаз у део зграде у ком се налази лабораторија.","1. Простор за фрижидере и замрзиваче,\n2. Просторија за анализу урина (15м2) са природним осветљењем."]
["3.3.","ЛМБА Пријем (200м2)",null,"Издвојен простор за:\n1. Пацијенте са столицама око 10 м2,\n2. Мокри чвор (2 тоалета, мушки и женски, по 5 м2),\n3. Пријемни шалтер са 2 до 4 радних места са одвојеним делом за пријем урина.\n4. 2-4 стандардних кабина за узимање материјала око 16 м2\n5. Део за обраду пријема узорака - 10 м2."]
["3.4.","Лабораторија за рад наставника, сарадника, специјализаната, доктораната (50м2)",null,"Одвојен простор за лабораторију за извођење ПЦР реакције."]
[" 3.5.","Канцеларија за шефа лабортаорије, риководиоца квалитета, руководиоца испитивања, аналитичара (45м2) "]
[" 3.6.","Просторија за лабораторијске техничаре (15м2) "]
[" 3.7.","Магацински простор за потрошни материјал (20м2)"]
[" 3.8.","Магацински простор за реагенсе (20м2)"]
[" 3.9.","Просторија за одмор и чајна кухиња (10м2)"]
[" 3.10.","Гардероба за запослене (10м2) "]
[" 3.11.","Гардероба за студенте, специјализанте, докторанте (20м2) "]
[" 3.12.","Тоалети за запослене (10м2)"]
[" 3.13.","Тоалети за студенте, специјализанте, докторанте (10м2)"]
[" 3.14.","Просторија за чување биолошког материјала (10м2)"]
[" 3.15.","Просторија за деконтаминацију узорака (10м2)"]
["ЦЕНТРАЛНЕ ЛАБОРАТОРИЈЕ-КОМЕРЦИЈАЛНЕ УСЛУГЕ - НЕТО УКУПНО",{"$nulls":3},{"$f":"SUM(E108:E112)","v":{"v":0,"d":"0.00"}}]
[]
["В   ЛАБОРАТОРИЈЕ И ВИВАРИЈУМИ"]
["ВИВАРИЈУМИ"]
["1.","Виваријум у оквиру зграде факултета (250м2)  ","Не сме да буде под земљом."]
["2.","Модуларни виваријум   (75м2) ","Посебна зграда у непосредној близини факултета, која је комуникацијом у нивоу приземља повезана са зградом факултета."]
["ВИВАРИЈУМИ - НЕТО УКУПНО",{"$nulls":3},{"$f":"SUM(E144:E145)","v":{"v":0,"d":"0.00"}}]
["(В)  ЛАБОРАТОРИЈЕ И ВИВАРИЈУМИ - НЕТО УКУПНО",{"$nulls":3},{"$f":"SUM(E99,E104,E121,E127,E134,E141,E146)","v":{"v":0,"d":"0.00"}}]
[]
["Г   ТЕХНИЧКЕ ПРОСТОРИЈЕ"]
["СЕРВИСНИ ДЕО И МАГАЦИНИ"]
["1.","Сервисни део (мајсторски део) (220м2)","Електро 40 m2\nВик 40 m2\nМашинске инсталације 40 m2\nЕнтеријерско уређење 40 m2\nПејзажно уређење 40 m2\nЗаједнички простор 20 m2"]
["2.","Складиште Одсека за одржавање објекта (100м2) "]
["3.","Складиште Службе за информационе технологије  (30м2) ","Локација овог простора, у случају вишеспратне зграде, приземље објекта, идеално близу улаза, лифта."]
["4.","Централно складиште хемикалија (200м2) "]
["5.","Централно складиште потрошног материјала (150м2)"]
["6.","Централна станица за редестиловану воду (20м2) "]
["7.","Просторија за одлагање отпада   (20м2) ","Два одвојена сегмента, за  опасни отпад и радиоактивни отпад"]
["8.","Просторија за одлагање биоотпада  (15м2) "]
["9.","Централни систем за опремање лабораторија гасовима (50м2) ","Поседује машинску собу, гасна пумпа (просторија).\nМорају да имају директну везу са прилазом."]
["ТЕХНИЧКЕ ПРОСТОРИЈЕ - НЕТО УКУПНО",{"$nulls":3},{"$f":"SUM(E151:E154)","v":{"v":0,"d":"0.00"}}]
["САНИТАРНЕ ПРОСТОРИЈЕ - МОКРИ ЧВОРОВИ "]
["1.","Мокри чворови за студенте код амфитеатара  (75м2)"]
["2.","Мокри чворови по спратовима за студенте  (10 х 30м2)"]
["3.","Мокри чвор уз радионице, централне лабораторије, HUB просторе (8 х 10м2)"]
["САНИТАРНЕ ПРОСТОРИЈЕ - МОКРИ ЧВОРОВИ - НЕТО УКУПНО     ",{"$nulls":3},{"$f":"SUM(E162:E164)","v":{"v":0,"d":"0.00"}}]
["ГАЛЕРИЈА МУЗЕЈА И АТРИЈУМ"]
["1.","Галерија Музеја за историју фармације у централном холу  (400м2)"]
["2.","Атријум  – унутрашње зеленило (показно и украсно)  (200м2)"]
["ГАЛЕРИЈА МУЗЕЈА И АТРИЈУМ - НЕТО УКУПНО     ",{"$nulls":3},{"$f":"SUM(E166:E168)","v":{"v":0,"d":"0.00"}}]
["(Г)   ТЕХНИЧКЕ ПРОСТОРИЈЕ - НЕТО УКУПНО",{"$nulls":3},{"$f":"SUM(E106,E140,E146,E160,E165)","v":{"v":0,"d":"0.00"}}]
[]
["Д    КАТЕДРЕ"]
["Д.1 КАТЕДРА ЗА АНАЛИТИКУ ЛЕКОВА"]
[" 1.1","Лабораторија за студенте + повезана са собом за ваге; 32 радна места за студенте   (120 м2 + 4 x 2 м2)","4 собе за ваге"]
[" 1.2","Лабораторија за истраживачки рад наставника и сарадника  (50м2)"]
[" 1.3","Просторија за техничко особље и припрему хемикалија и анализа (20 м2 у коју треба сместити апарат за дестилацију воде.) "]
[" 1.4","Складиште хемикалија  (15 м2 повезано са Просторијом за техничко особље и припрему хемикалија и анализа) ","Мора бити повезано са просторијом за техничко особље и припрему хемикалија и анализа."]
[" 1.5","Помоћна просторија (смештај за спремачице / чајна кухиња) (20м2)"]
[" 1.6","Библиотека са канцеларијом (35м2) ","Хоризонталном комуникацијом повезана са лабораторијом."]
[" 1.7","Кабинети за наставнике и сараднике  (3 х 10 м2; 2 х 25 м2) "]
[" 1.8","Кабинет за шефа катедре  (25м2) "]
[" 1.9","Тоалет  за запослене (10м2) "]
["Д.1 КАТЕДРА ЗА АНАЛИТИКУ ЛЕКОВА - НЕТО УКУПНО     ",{"$nulls":3},{"$f":"SUM(E171:E173)","v":{"v":0,"d":"0.00"}}]
["Д.2 КАТЕДРА ЗА АНАЛИТИЧКУ ХЕМИЈУ"]
[" 2.1","Лабораторија за студенте + повезане са собом за ваге   (3 х 60 м2 + 5 x 2 м2  Собе за ваге)","5 x 2 м2  Собе за ваге\n3 х 60 м2 Лабораторије"]
[" 2.2","Лабораторија за истраживачки рад наставника и сарадника (60м2)","Да се наставља на лабораторију за студенте са којом је спојена вратима."]
[" 2.3","Просторија за техничко особље и припрему хемикалија и анализа (25 м2 + 20 м2) "]
[" 2.4","Складиште хемикалија  (15 м2 повезано са Просторијом за техничко особље и припрему хемикалија и анализа) ","Повезано са просторијом за техничко особље и припрему хемикалија и анализа"]
[" 2.5","Помоћна просторија – прање  судова (10м2)"]
[" 2.6","Помоћна просторија (смештај за спремачице / чајна кухиња) (20м2) "]
[" 2.7","Библиотека са канцеларијом\t  (35м2) ","Хоризонталном комуникацијом повезана са лабораторијом."]
[" 2.8","Кабинети за наставнике и сараднике    (3 х 10 м2 +  25 м2) "]
[" 2.9","Кабинет за шефа катедре  (25м2) "]
[" 2.10","Тоалет  за запослене (10м2) "]
["Д.2 КАТЕДРА ЗА АНАЛИТИЧКУ ХЕМИЈУ - НЕТО УКУПНО     ",{"$nulls":3},{"$f":"SUM(E173:E184)","v":{"v":0,"d":"0.00"}}]
["Д.3 КАТЕДРА ЗА БОТАНИКУ"]
[" 3.1","Вежбаоница за студенте (90 + 25 м2)"]
[" 3.2","Лабораторија за истраживачки рад наставника и сарадника (25м2)"]
[" 3.3","Просторија за апарате (20 м2) "]
[" 3.4","Помоћна просторија (смештај за спремачице / чајна кухиња)   (20м2) "]
[" 3.5","Библиотека са канцеларијом\t (35м2)","Хоризонталном комуникацијом повезана са лабораторијом."]
[" 3.6","Кабинети за наставнике и сараднике (2 х 20 м2 + 10 м2) "]
[" 3.7","Кабинет за шефа катедре   (25м2) "]
[" 3.8","Тоалет  за запослене    (10м2) "]
["Д.3 КАТЕДРА ЗА БОТАНИКУ - НЕТО УКУПНО     ",{"$nulls":3},{"$f":"SUM(E184:E196)","v":{"v":0,"d":"0.00"}}]
["Д.4 КАТЕДРА ЗА БРОМАТОЛОГИЈУ"]
[" 4.1","Лабораторија за студенте + просторија за припрему анализа + соба за ваге. 32 у великој и 16 радних места у малој сали за студенте. (125 м2 + 80 м2) + 15 м2 + 10 м2 за собу за ваге","1. Лабораторија\n2. Просторија за припрему анализа\n3. Соба за ваге"]
[" 4.2","Лабораторија за истраживачки рад наставника и сарадника + соба за ваге (50 м2 + 10 м2)","Одвојена соба за ваге"]
[" 4.3","Просторија за апарате (2 х 25 м2) "]
[" 4.4","Просторија за прање судова  (10 м2) "]
[" 4.5","Техничко особље и архива(20м2)"]
[" 4.6","Помоћна просторија (смештај за спремачице / чајна кухиња) (20м2) "]
[" 4.7","Библиотека са канцеларијом\t  (35м2) ","Хоризонталном комуникацијом повезана са лабораторијом."]
[" 4.8","Кабинети за наставнике и сараднике    (3 х 10 м2 + 2 х 20 м2 + 25 м2) "]
[" 4.9","Кабинет за шефа катедре  (25м2) "]
[" 4.10","Тоалет  за запослене (10м2) "]
["Д.4 КАТЕДРА ЗА БРОМАТОЛОГИЈУ - НЕТО УКУПНО     ",{"$nulls":3},{"$f":"SUM(E196:E206)","v":{"v":0,"d":"0.00"}}]
["Д.5 КАТЕДРА ЗА ФАРМАЦЕУТСКУ ХЕМИЈУ"]
[" 5.1","Лабораторија за студенте + повезан простор за припрему анализа + повезане собе за ваге 2 х 100 м2 + 15 м2 +Собе за ваге 2 x 2,5 м2","Собе за ваге 2 x 2,5 м2"]
[" 5.2","Лабораторија за истраживачки рад наставника и сарадника + соба за ваге (100 м2 + 15 м2 +\nСобе за ваге 2 x 2,5 м2)","Собе за ваге 2 x 2,5 м2"]
[" 5.3","Лабораторија за HPLC са масеним спектрометром (30м2) "]
[" 5.4","Просторија за техничко особље + припрему хемикалија и анализа  (10 м2 + 15 м2) "]
[" 5.5","Складиште хемикалија (15м2)"]
[" 5.6","Просторија за прање судова + просторија за дестилацију воде (5 м2 + 5 м2) "]
[" 5.7","Помоћна просторија (смештај за спремачице / чајна кухиња) (20м2) "]
[" 5.8","Библиотека са канцеларијом (50м2) ","Хоризонталном комуникацијом повезана са лабораторијом."]
[" 5.9","Кабинети за наставнике и сараднике (6 х 10 м2 + 3 х 20 м2 + 3 х 25 м2) "]
[" 5.10","Кабинет за шефа катедре  (25м2) "]
[" 5.11","Тоалет  за запослене  (10м2) "]
["Д.5 КАТЕДРА ЗА ФАРМАЦЕУТСКУ ХЕМИЈУ - НЕТО УКУПНО     ",{"$nulls":3},{"$f":"SUM(E206:E218)","v":{"v":0,"d":"0.00"}}]
["Д.6 КАТЕДРА ЗА ФАРМАЦЕУТСКУ ТЕХНОЛОГИЈУ И КОЗМЕТОЛОГИЈУ"]
[" 6.1","Лабораторија-вежбаоница за студенте (3 х 75 м2 + 3 х 50 м2)","6 просторија"]
[" 6.2","Лабораторија- вежбаоница за студенте (асептични блок) (20 м2 + 15 м2 )","2 просторије"]
[" 6.3","Лабораторија за истраживачки рад наставника и сарадника (30 м2 + 100 м2 + 100 м2 + 15 м2 + 15 м2 +10 м2 + 10 м2) ","7 просторија"]
[" 6.4","Просторија за мерење при лабораторији за научно-истраживачки рад  (10 м2) "]
[" 6.5","Просторија за апарате (уређај за дестилацију воде, сушнице, аутоклави…) (3 х 5 м2)","3 просторије"]
[" 6.6","Семинарска сала (70м2) "]
[" 6.7","Магацин (30м2) ","2 просторије"]
[" 6.8","Просторија за припрему и прање судова  (10 м2 + 15 м2) ","2 просторије"]
[" 6.9","Помоћна просторија (смештај за спремачице / чајна кухиња)  (30м2) "]
[" 6.10","Просторија за техничаре и архива  (2 х 15 м2 ) "]
[" 6.11","Библиотека са канцеларијом  (50м2) ","Хоризонталном комуникацијом повезана са лабораторијом."]
[" 6.12","Кабинети за наставнике и сараднике  (5 х 10 м2 + 4 х 20 м2 + 7 х 25 м2) ","16 просторија"]
[" 6.13","Кабинет за шефа катедре   (25м2) "]
[" 6.14","Тоалет  за запослене  (10м2) "]
["Д.6 КАТЕДРА ЗА ФАРМАЦЕУТСКУ ТЕХНОЛОГИЈУ И КОЗМЕТОЛОГИЈУ - НЕТО УКУПНО     ",{"$nulls":3},{"$f":"SUM(E218:E231)","v":{"v":0,"d":"0.00"}}]
["Д.7 КАТЕДРА ЗА ФАРМАКОГНОЗИЈУ"]
[" 7.1","Вежбаоница за студенте – за микроскопске и макроскопску анализу дрога (2 х 70 м2)"]
[" 7.2","Лабораторија за студенте – хемијска анализа дрога + просторија за прање судова + просторија за припрему реагенаса +  додатни простор за припрему биљног материјала са добрим могућностима за природну вентилацију (150 м2 + 15 м2 + 20 м2 + 25 м2)","Додатни простор за припрему биљног материјала са природном вентилацијом (10-15 м2)"]
[" 7.3","Лабораторија за истраживачки рад наставника и сарадника + просторија за ваге + просторија за прање судова + просторија за дестиловану воду (80 м2 + 10 м2 + 10 м2 + 5 м2) "]
[" 7.4","Просторија за техничаре (20 м2) "]
[" 7.5","Просторија за апарате (2 х25 м2)","1 Просторија са одвојеним делом за генератор гасова.\n1 Просторија обезбеђена за боце са гасовима"]
[" 7.6","Просторија за припрему узорака (15м2) "]
[" 7.7","Просторија са аналитичком опремом апаратима (2 х 15м2) "]
[" 7.8","Магацински простор за хемикалије  (20 м2) "]
[" 7.9","Магацински простор за биљни материјал  (50м2) "]
[" 7.10","Помоћна просторија (смештај за спремачице / чајна кухиња)   (20 м2 ) "]
[" 7.11","Библиотека са канцеларијом  (50м2) ","Хоризонталном комуникацијом повезана са лабораторијом."]
[" 7.12","Кабинети за наставнике и сараднике  (2 х 25 м2 + 2 х 20 м2 + 4 х 10 м2) "]
[" 7.13","Кабинет за шефа катедре   (25м2) "]
[" 7.14","Тоалет  за запослене  (10м2) "]
["Д.7 КАТЕДРА ЗА ФАРМАКОГНОЗИЈУ - НЕТО УКУПНО     ",{"$nulls":3},{"$f":"SUM(E231:E247)","v":{"v":0,"d":"0.00"}}]
["Д.8 КАТЕДРА ЗА ФАРМАКОКИНЕТИКУ И КЛИНИЧКУ ФАРМАЦИЈУ"]
[" 8.1","Вежбаоница за студенте (50 м2)"]
[" 8.2","Лабораторија за истраживачки рад наставника и сарадника (40м2)"]
[" 8.3","Просторија за апарате (2 х 10 м2 + 20 м2) "]
[" 8.4","Помоћна просторија (смештај за спремачице / чајна кухиња)   (20м2) "]
[" 8.5","Библиотека са канцеларијом\t (35м2)","Хоризонталном комуникацијом повезана са лабораторијом."]
[" 8.6","Кабинети за наставнике и сараднике  техничаре (5 х 10 м2 + 2 х 15 м2 + 2 х 20 м2 ) "]
[" 8.7","Кабинет за шефа катедре   (25м2) "]
[" 8.8","Тоалет  за запослене    (10м2) "]
["Д.8 КАТЕДРА ЗА ФАРМАКОКИНЕТИКУ И КЛИНИЧКУ ФАРМАЦИЈУ - НЕТО УКУПНО     ",{"$nulls":3},{"$f":"SUM(E247:E263)","v":{"v":0,"d":"0.00"}}]
["Д.9 КАТЕДРА ЗА ФАРМАКОЛОГИЈУ"]
[" 9.1","Вежбаоница за студенте (2 х 45 м2)"]
[" 9.2","Лабораторија за истраживачки рад наставника и сарадника (50 м2 + 30 м2 + 20 м2 + 25 м2)"]
[" 9.3","Просторија за прање (10м2) "]
[" 9.4","Просторија за припрему  (15 м2) "]
[" 9.5","Просторија за апарате (20м2)"]
[" 9.6","Техничко особље (20м2) "]
[" 9.7","Помоћна просторија (смештај за спремачице / чајна кухиња) (20м2) "]
[" 9.8","Библиотека са канцеларијом (50м2) ","Хоризонталном комуникацијом повезана са лабораторијом."]
[" 9.9","Кабинети за наставнике и сараднике (3 х 10 м2 + 2 х 20 м2 + 3 х 25 м2) "]
[" 9.10","Кабинет за шефа катедре  (25м2) "]
[" 9.11","Тоалет  за запослене  (10м2) "]
["Д.9 КАТЕДРА ЗА ФАРМАКОЛОГИЈУ - НЕТО УКУПНО     ",{"$nulls":3},{"$f":"SUM(E263:E273)","v":{"v":0,"d":"0.00"}}]
["Д.10 КАТЕДРА ЗА ФИЗИЧКУ ХЕМИЈУ И ИНСТРУМЕНТАЛНЕ МЕТОДЕ"]
[" 10.1","Лабораторија за студенте  (110 м2 + 30 м2)","Простор за испирање очију или безбедносни туш"]
[" 10.2","Лабораторија за истраживачки рад наставника и сарадника (50м2)","Мора да буде у приземљу.\nПростор за испирање очију или безбедносни туш."]
[" 10.3","Просторија за апарате (20м2) "]
[" 10.4","Просторија за прање  (10м2) "]
[" 10.5","Просторија за припрему хемикалија и магацин хемикалија + соба за мерење (15 м2 + 10 м2)"]
[" 10.6","Техничко особље (20м2) "]
[" 10.7","Помоћна просторија (смештај за спремачице / чајна кухиња) (20м2) "]
[" 10.8","Библиотека са канцеларијом (35м2) ","Хоризонталном комуникацијом повезана са лабораторијом."]
[" 10.9","Кабинети за наставнике и сараднике (3 х 10 м2 + 1 х 25 м2 ) "]
[" 10.10","Кабинет за шефа катедре  (25м2) "]
[" 10.11","Тоалет  за запослене  (10м2) "]
["Д.10 КАТЕДРА ЗА ФИЗИЧКУ ХЕМИЈУ И ИНСТРУМЕНТАЛНЕ МЕТОДЕ - НЕТО УКУПНО     ",{"$nulls":3},{"$f":"SUM(E273:E286)","v":{"v":0,"d":"0.00"}}]
["Д.11 КАТЕДРА ЗА ФИЗИОЛОГИЈУ"]
[" 11.1","Вежбаоница за студенте  (60м2)"]
[" 11.2","Лабораторија за студенте (40м2) "]
[" 11.3","Лабораторија за истраживачки рад наставника и сарадника (50 м2  (PCR лабораторија из 4 међусобно повезане просторије)\n+ 75 м2  (подељена у 3 целине - краткорочне ћелијске културе-стерилна соба,  микроскопија и хистологија)\n)","У свакој од две лабораторије , по један одвојени део који је стерилна соба (3х4метара) \nИндустријски под, вентилација."]
[" 11.4","Просторија за апарате (30м2) "]
[" 11.5","Просторија за припрему и магацин хемикалија (25м2) "]
[" 11.6","Просторија за прање  (10м2) "]
[" 11.7","Техничко особље  (20м2) "]
[" 11.8","Помоћна просторија (смештај за спремачице / чајна кухиња)   (20 м2 ) "]
[" 11.9","Библиотека са канцеларијом  (35м2) ","Хоризонталном комуникацијом повезана са лабораторијом."]
[" 11.10","Кабинети за наставнике и сараднике  (2 х 10 м2 + 2 х 20 м2 + 25 м2 ) "]
[" 11.11","Кабинет за шефа катедре   (25м2) "]
[" 11.12","Тоалет  за запослене  (10м2) "]
["Д.11 КАТЕДРА ЗА ФИЗИОЛОГИЈУ - НЕТО УКУПНО     ",{"$nulls":3},{"$f":"SUM(E286:E299)","v":{"v":0,"d":"0.00"}}]
["Д.12 КАТЕДРА ЗА ФИЗИКУ И МАТЕМАТИКУ"]
[" 12.1","Лабораторија/вежбаоница за студенте  (90м2)"]
[" 12.2","Лабораторија за истраживачки рад наставника и сарадника (30м2) ","У свакој од две лабораторије , по један одвојени део који је стерилна соба (3х4 м2) \nИндустријски под, вентилација."]
[" 12.3","Просторија за апарате (25м2) "]
[" 12.4","Техничко особље (20м2)"]
[" 12.5","Помоћна просторија (смештај за спремачице / чајна кухиња) (20м2) "]
[" 12.6","Библиотека са канцеларијом\t  (35м2) ","Хоризонталном комуникацијом повезана са лабораторијом."]
[" 12.7","Кабинети за наставнике и сараднике    (10 м2 + 20 м2 + 25 м2 ) "]
[" 12.8","Кабинет за шефа катедре  (25м2) "]
[" 12.9","Тоалет  за запослене (10м2) "]
["Д. 12КАТЕДРА ЗА ФИЗИКУ И МАТЕМАТИКУ - НЕТО УКУПНО     ",{"$nulls":3},{"$f":"SUM(E299:E313)","v":{"v":0,"d":"0.00"}}]
["Д.13 КАТЕДРА ЗА МЕДИЦИНСКУ БИОХЕМИЈУ"]
[" 13.1","Лабораторија за студенте   (3 х 75 м2 )","Издвојен део за припрему анализа 15 м2."]
[" 13.2","Лабораторија за истраживачки рад наставника и сарадника (2 х 75 м2 + 30 м2 (подељен на 3 дела од по 10 м2)) ","Веће лабораторије - Издвојен осигурани део за гасове. \nМања лабораторија od 45 m2 подељена у три мање  просторије од по 15 м2 како би се организовао нормалан процес рада. Свака мора имати одвојена врата. Једна лабораторија мора имати следеће техничке спецификације: вода, дигестор, инсталације за ламинарну комору. Остале две просторије морају имати воду."]
[" 13.3","Просторија за апарате (20м2)"]
[" 13.4","Хладна соба (20м2) "]
[" 13.5","Просторија за прање (10м2) "]
[" 13.6","Просторија за припрему хемикалија и магацин хемикалија, узорака, фрижидери + соба за мерење  (35 м2 + 10 м2) "]
[" 13.7","Техничко особље  (20м2) "]
[" 13.8","Помоћна просторија (смештај за спремачице / чајна кухиња)   (20 м2 ) "]
[" 13.9","Библиотека са канцеларијом  (50м2) ","Хоризонталном комуникацијом повезана са лабораторијом."]
[" 13.10","Кабинети за наставнике и сараднике  (7 х 10 м2 + 4 х 20 м2 + 5 х 25 м2) "]
[" 13.11","Кабинет за шефа катедре   (25м2) "]
[" 13.12","Тоалет  за запослене  (10м2) "]
["Д.13 КАТЕДРА ЗА МЕДИЦИНСКУ БИОХЕМИЈУ - НЕТО УКУПНО     ",{"$nulls":3},{"$f":"SUM(E313:E324)","v":{"v":0,"d":"0.00"}}]
["Д.14 КАТЕДРА ЗА МИКРОБИОЛОГИЈУ И ИМУНОЛОГИЈУ"]
[" 14.1","Лабораторија за студенте   (2 х 60 м2 )","Издвојен део за припрему анализа 15 м2."]
[" 14.2","Лабораторија за истраживачки рад наставника и сарадника (2 х 45 м2 ) ","У оквиру једне лабораторије издвојен део за стерилан рад 15м2."]
[" 14.3","Просторија за апарате (2 х 10 м2 + 20 м2)"]
[" 14.4","Хладна соба (10м2) "]
[" 14.5","Просторија за прање (10м2) "]
[" 14.6","Просторија за припрему подлога и магацин хемикалија, узорака, фрижидери   (30м2) "]
[" 14.7","Техничко особље  (20м2) "]
[" 14.8","Помоћна просторија (смештај за спремачице / чајна кухиња)   (20 м2 ) "]
[" 14.9","Библиотека са канцеларијом  (35м2) "]
[" 14.10","Кабинети за наставнике и сараднике  (4 х 10 м2 + 2 х 20 м2 ) "]
[" 14.11","Кабинет за шефа катедре   (25м2) "]
[" 14.12","Тоалет  за запослене  (10м2) "]
["Д.14 КАТЕДРА ЗА МИКРОБИОЛОГИЈУ И ИМУНОЛОГИЈУ - НЕТО УКУПНО     ",{"$nulls":3},{"$f":"SUM(E324:E338)","v":{"v":0,"d":"0.00"}}]
["Д.15 КАТЕДРА ЗА ОПШТУ И НЕОРГАНСКУ ХЕМИЈУ"]
[" 15.1","Лабораторија за студенте + просторија за припрему хемикалија; 20 радних места по лабораторији (60 м2 + 35 м2)","Издвојен део за припрему анализа 15 м2.\nИзмеђу лабораторија простор за припрему хемикалија."]
[" 15.2","Лабораторија за истраживачки рад наставника и сарадника (40 м2)"]
[" 15.3","Просторија за прање (10 м2) "]
[" 15.4","Магацин хемикалија  (30 м2) "]
[" 15.5","Техничко особље (20м2)"]
[" 15.6","Помоћна просторија (смештај за спремачице / чајна кухиња) (20м2) "]
[" 15.7","Библиотека са канцеларијом\t  (35м2) ","Хоризонталном комуникацијом повезана са лабораторијом."]
[" 15.8","Кабинети за наставнике и сараднике    (2 х 20 м2 ) "]
[" 15.9","Кабинет за шефа катедре  (25м2) "]
[" 15.10","Тоалет  за запослене (10м2) "]
["Д.15 КАТЕДРА ЗА ОПШТУ И НЕОРГАНСКУ ХЕМИЈУ - НЕТО УКУПНО     ",{"$nulls":3},{"$f":"SUM(E338:E352)","v":{"v":0,"d":"0.00"}}]
["Д.16 КАТЕДРА ЗА ОРГАНСКУ ХЕМИЈУ"]
[" 16.1","Лабораторија за студенте + просторија за припрему хемикалија и анализа; 20 радних места по лабораторији  (3 х 60 м2 + 15 м2) ","Издвојен део за припрему анализа 15 м2.\nИзмеђу лабораторија простор за припрему хемикалија."]
[" 16.2","Лабораторија за истраживачки рад наставника и сарадника + соба за мерење  (90 м2 + 10 м2) "]
[" 16.3","Просторија за апарате (20м2)"]
[" 16.4","Просторија за NMR (40м2)","Соба у приземљу."]
[" 16.5","Хладна соба (10м2) "]
[" 16.6","Просторија за прање  (10 м2) "]
[" 16.7","Магацин хемикалија и потрошног материјала (20м2)"]
[" 16.8","Техничко особље (20м2) "]
[" 16.9","Помоћна просторија (смештај за спремачице / чајна кухиња) (20м2) "]
[" 16.10","Библиотека са канцеларијом (35м2) ","Хоризонталном комуникацијом повезана са лабораторијом."]
[" 16.11","Кабинети за наставнике и сараднике (10 м2 + 2 х 20 м2 + 25 м2 ) ","Уз лабораторију за научно истраживачки рад запослених."]
[" 16.12","Кабинет за шефа катедре  (25м2) "]
[" 16.13","Тоалет  за запослене  (10м2) "]
["Д.16 КАТЕДРА ЗА ОРГАНСКУ ХЕМИЈУ - НЕТО УКУПНО     ",{"$nulls":3},{"$f":"SUM(E352:E364)","v":{"v":0,"d":"0.00"}}]
["Д.17 КАТЕДРА ЗА ПАТОБИОЛОГИЈУ"]
[" 17.1","Вежбаоница за студенте  (60м2)"]
[" 17.2","Лабораторија за истраживачки рад наставника и сарадника (биохемијска лабораторија) (40 м2  + 15 м2)"]
[" 17.3","Просторија за припрему узорака за флуоресцентно микроскопску анализу (10м2) "]
[" 17.4","Простор за стерилни рад са предпросторијом  (20м2) "]
[" 17.5","ПЦР соба са предпросторијом (30м2)"]
[" 17.6","Техничко особље и архива (20м2) "]
[" 17.7","Помоћна просторија (смештај за спремачице / чајна кухиња) (20м2) "]
[" 17.8","Библиотека са канцеларијом (35м2) ","Хоризонталном комуникацијом повезана са лабораторијом."]
[" 17.9","Кабинети за наставнике и сараднике (2 х 10 м2 + 3 х 25 м2 ) "]
[" 17.10","Кабинет за шефа катедре  (25м2) "]
[" 17.11","Тоалет  за запослене  (10м2) "]
["Д.17 КАТЕДРА ЗА ПАТОБИОЛОГИЈУ - НЕТО УКУПНО     ",{"$nulls":3},{"$f":"SUM(E364:E379)","v":{"v":0,"d":"0.00"}}]
["Д.18 КАТЕДРА ЗА СОЦИЈАЛНУ ФАРМАЦИЈУ И ФАРМАЦЕУТСКО ЗАКОНОДАВСТВО"]
[" 18.1","Лабораторија/вежбаоница за студенте  (90 м2 + 80 м2)","1. Део просторије опремљен као симулирана апотека са четири радна места 20м2,\n2. Део просторије опремљен за рад асистената 10 м2"]
[" 18.2","Просторија за истраживачки рад наставника и сарадника (30м2)"]
[" 18.3","Материјал за наставу и архива (20 м2) "]
[" 18.4","Помоћна просторија (смештај за спремачице / чајна кухиња)   (20м2) "]
[" 18.5","Библиотека са канцеларијом\t (35м2)","Хоризонталном комуникацијом повезана са лабораторијом."]
[" 18.6","Кабинети за наставнике и сараднике (5 х 10 м2 +  2 х 20 м2 ) "]
[" 18.7","Кабинет за шефа катедре   (25м2) "]
[" 18.8","Тоалет  за запослене    (10м2) "]
["Д.18 КАТЕДРА ЗА СОЦИЈАЛНУ ФАРМАЦИЈУ И ФАРМАЦЕУТСКО ЗАКОНОДАВСТВО - НЕТО УКУПНО     ",{"$nulls":3},{"$f":"SUM(E379:E392)","v":{"v":0,"d":"0.00"}}]
["Д.19 КАТЕДРА ЗА ТОКСИКОЛОГИЈУ \"АКАДЕМИК ДАНИЛО СОЛДАТОВИЋ\""]
[" 19.1","Лабораторија за студенте + просторија за припрему анализа – соба за мерење  (3 х 60 м2 + 15 м2 + 10 м2)","Издвојен део за припрему анализа 15 м2."]
[" 19.2","Лабораторија за истраживачки рад наставника и сарадника(30 м2 + 50 м2 + 100 м2)","Две лабораторије од 50 и 100 м2 имају дигесторе."]
[" 19.3","Просторија за апарате (30м2) "]
[" 19.4","Просторија за прање (10м2) "]
[" 19.5","Магацин за хемикалије, потрошни материјал (15м2)"]
[" 19.6","Техничко особље (20м2) "]
[" 19.7","Помоћна просторија (смештај за спремачице / чајна кухиња) (20м2) "]
[" 19.8","Библиотека са канцеларијом (40м2) ","Хоризонталном комуникацијом повезана са лабораторијом."]
[" 19.9","Кабинети за наставнике и сараднике (4 х 10 м2 + 20 м2 + 25 м2 ) "]
[" 19.10","Кабинет за шефа катедре  (25м2) "]
[" 19.11","Тоалет  за запослене  (10м2) "]
["Д.19 КАТЕДРА ЗА ТОКСИКОЛОГИЈУ \"АКАДЕМИК ДАНИЛО СОЛДАТОВИЋ\" - НЕТО УКУПНО     ",{"$nulls":3},{"$f":"SUM(E392:E402)","v":{"v":0,"d":"0.00"}}]
["(Д) КАТЕДРЕ  - НЕТО УКУПНО",{"$nulls":3},{"$f":"SUM(E206:E272)","v":{"v":0,"d":"0.00"}}]
[]
[null,"РЕКАПИТУЛАЦИЈА ПОВРШИНА"]
[]
[null,"А   ПРОСТОРИ ЗА НАСТАВУ ",null,null,{"$f":"SUM(E33)","v":{"v":0,"d":"0.00"}}]
[null,"Б    АДМИНИСТРАЦИЈА",null,null,{"$f":"SUM(E52)","v":{"v":0,"d":"0.00"}}]
[null,"В   ЛАБОРАТОРИЈЕ И ВИВАРИЈУМИ",null,null,{"$f":"SUM(E170)","v":{"v":0,"d":"0.00"}}]
[null,"Г    ТЕХНИЧКЕ ПРОСТОРИЈЕ",null,null,{"$f":"SUM(E415)","v":{"v":0,"d":"0.00"}}]
[null,"Д    КАТЕДРЕ",null,null,{"$f":"SUM(E415)","v":{"v":0,"d":"0.00"}}]
[null,"УКУПНО НЕТО",null,null,{"$f":"SUM(E419:E423)","v":{"v":0,"d":"0.00"}}]
[]
[]
[null,"ОБЈЕКАТ БЕЗ ТЕХНИЧКИХ ПРОСТОРА НЕТО УКУПНО (m²)"]
[]
[null,"ОБЈЕКАТ СА ТЕХНИЧКИМ ПРОСТОРИМА НЕТО УКУПНО (m²)"]
[]
[null,"БРУТО ПОВРШИНА ОБЈЕКТА - НАДЗЕМНА УКУПНО (m²)"]
[]
[null,"БРУТО ПОВРШИНА ОБЈЕКТА - ПОДЗЕМНА УКУПНО (m²)"]
[]
[null,"БРУТО ПОВРШИНА ОБЈЕКТА - НАДЗЕМНА + ПОДЗЕМНА УКУПНО (m²)"]
[]
[]
[null,"*Напомена: У ПРИЛОГУ 1  дати су детаљни опис појединих просторија , начин коришћења опрема и ближи просторни услови "]